bitfinex-derivatives/quotes_ETHF0:USTF0_20250323
["timestamp","ask_amount","ask_price","bid_price","bid_amount"]
[1742700679370,1.95419977,2003.6,2003.5,5.46963]
[1742700679575,1.95419977,2003.6,2003.5,6.15553]
[1742700680878,0.6713,2003.7,2003.5,6.15553]
[1742700680879,0.00749738,2003.9,2003.8,0.99828]
[1742700681068,0.00749738,2003.9,2003.8,4.20608]
[1742700681271,0.65459715,2003.9,2003.8,4.20608]
[1742700681467,0.65459715,2003.9,2003.8,4.86048]
[1742700685387,2.00199715,2003.9,2003.8,4.86048]
[1742700685585,2.66799715,2003.9,2003.8,4.86048]
[1742700687391,2.66799715,2003.9,2003.8,1.65268]
[1742700687983,2.66799715,2003.9,2003.8,3.04188]
[1742700690492,0.9981,2004.2,2004.0,0.99816]
[1742700690691,1.3701,2004.1,2004.0,0.99816]
[1742700694691,2.36823,2004.1,2004.0,0.99816]
[1742700694892,1.3701,2004.1,2004.0,0.99816]
[1742700702688,1.3701,2004.1,2004.0,2.36866]
[1742700703099,0.99818,2004.0,2003.9,4.206]
[1742700703396,1.68088,2004.0,2003.9,4.206]
[1742700703793,1.68088,2004.0,2003.9,0.9982]
[1742700704694,0.6827,2004.0,2003.9,0.9982]
[1742700705088,2.0197,2004.0,2003.9,0.9982]
[1742700706090,3.01789,2004.0,2003.8,2.36874]
[1742700706392,1.337,2003.9,2003.8,2.36874]
[1742700706592,2.33523,2003.9,2003.8,1.3705]
[1742700706791,2.99113,2003.9,2003.8,1.3705]
[1742700707190,1.9929,2003.9,2003.8,2.36878]
[1742700709091,1.337,2003.9,2003.8,2.36878]
[1742700716308,2.6789,2003.9,2003.8,2.36878]
[1742700717100,3.67713,2003.9,2003.8,1.3705]
[1742700717606,2.6789,2003.9,2003.8,2.36878]
[1742700717807,3.67713,2003.9,2003.8,1.3705]
[1742700718311,3.67713,2003.9,2003.8,2.36878]
[1742700718805,3.67713,2003.9,2003.8,1.3705]
[1742700719713,2.6789,2003.9,2003.8,1.3705]
[1742700719914,3.67713,2003.9,2003.8,1.3705]
[1742700720713,3.67716,2003.9,2003.7,0.99833]
[1742700720914,1.3247,2003.8,2003.7,2.33693]
[1742700726411,2.32298,2003.8,2003.7,1.3386]
[1742700726611,2.32298,2003.8,2003.7,2.33693]
[1742700726612,1.3247,2003.8,2003.7,2.33693]
[1742700726809,2.32298,2003.8,2003.7,1.3386]
[1742700727025,1.3247,2003.8,2003.7,2.33693]
[1742700727821,1.3247,2003.8,2003.7,1.3386]
[1742700728024,1.3247,2003.8,2003.7,2.33693]
[1742700730036,2.32298,2003.8,2003.7,1.3386]
[1742700732427,2.32298,2003.8,2003.7,2.33693]
[1742700732937,1.3247,2003.8,2003.7,2.33693]
[1742700734343,2.32298,2003.8,2003.7,2.33693]
[1742700734532,1.3247,2003.8,2003.7,2.33693]
[1742700735739,2.32298,2003.8,2003.7,1.3386]
[1742700735935,2.32298,2003.8,2003.7,2.33693]
[1742700736131,0.99833,2003.7,2003.6,3.2078]
[1742700736331,0.99838,2003.6,2003.5,1.3002]
[1742700736538,0.99843,2003.5,2003.4,0.00749738]
[1742700736743,2.35683,2003.5,2003.4,0.00749738]
[1742700736937,5.56463,2003.5,2003.4,0.00749738]
[1742700738046,4.5662,2003.5,2003.4,1.00597738]
[1742700738245,4.5662,2003.5,2003.4,3.69757738]
[1742700738749,1.3584,2003.5,2003.4,3.69757738]
[1742700740039,2.35683,2003.5,2003.4,3.69757738]
[1742700742845,1.3584,2003.5,2003.4,3.69757738]
[1742700743051,2.35683,2003.5,2003.4,3.69757738]
[1742700743237,2.35683,2003.5,2003.4,2.69909738]
[1742700743437,6.19873,2003.5,2003.4,1.36369738]
[1742700743633,6.19873,2003.5,2003.4,0.00749738]
[1742700745947,4.5662,2003.5,2003.4,0.00749738]
[1742700746253,5.56463,2003.5,2003.4,0.66369738]
[1742700746657,5.56463,2003.5,2003.4,1.93179738]
[1742700747550,5.56463,2003.5,2003.4,2.93027738]
[1742700749051,4.5662,2003.5,2003.4,2.93027738]
[1742700749254,3.2078,2003.5,2003.4,2.93027738]
[1742700749756,4.4821,2003.5,2003.4,2.93027738]
[1742700750256,3.2078,2003.5,2003.4,2.93027738]
[1742700753958,4.5805,2003.5,2003.4,2.93027738]
[1742700755455,3.2078,2003.5,2003.4,2.93027738]
[1742700755665,1.3727,2003.6,2003.5,0.99843]
[1742700755958,1.3727,2003.6,2003.5,2.35473]
[1742700757566,2.37108,2003.6,2003.5,2.35473]
[1742700757755,1.3727,2003.6,2003.5,2.35473]
[1742700765763,3.885,2003.8,2003.7,0.99833]
[1742700766073,3.2078,2003.8,2003.7,0.99833]
[1742700766262,4.20608,2003.8,2003.7,0.99833]
[1742700766462,4.20608,2003.8,2003.7,1.67723]
[1742700767268,4.20608,2003.8,2003.7,2.99683]
[1742700767868,4.20608,2003.8,2003.7,1.9985]
[1742700768570,4.20608,2003.8,2003.7,2.99683]
[1742700768971,4.20608,2003.8,2003.7,1.9985]
[1742700770470,4.20608,2003.8,2003.7,1.3196]
[1742700770674,5.52148,2003.8,2003.7,1.3196]
[1742700771172,0.99838,2003.6,2003.5,1.65611]
[1742700771373,0.99838,2003.6,2003.5,0.6577]
[1742700771573,1.3856,2003.7,2003.4,1.64003738]
[1742700771574,0.99843,2003.5,2003.4,1.64003738]
[1742700772570,0.99843,2003.5,2003.4,2.92143738]
[1742700773474,0.99841,2003.6,2003.4,1.92299738]
[1742700773774,0.99841,2003.6,2003.5,1.2814]
[1742700777579,4.5232,2003.8,2003.5,2.2798]
[1742700777777,0.99838,2003.6,2003.5,2.2798]
[1742700777979,0.99838,2003.6,2003.5,0.9984]
[1742700778867,0.99843,2003.5,2003.4,1.64004738]
[1742700780177,0.99843,2003.5,2003.4,0.64159738]
[1742700782185,0.99843,2003.5,2003.4,0.00749738]
[1742700784781,0.99843,2003.5,2003.4,1.00597738]
[1742700785085,0.99841,2003.6,2003.4,1.00597738]
[1742700785775,0.99841,2003.6,2003.4,1.00593738]
[1742700785983,0.99841,2003.6,2003.4,0.00749738]
[1742700786185,4.5232,2003.8,2003.6,0.99834]
[1742700786481,4.84789,2003.8,2003.6,0.99834]
[1742700786684,4.84789,2003.8,2003.7,1.31]
[1742700787484,4.84789,2003.8,2003.7,2.30833]
[1742700789276,1.64009,2003.8,2003.7,2.30833]
[1742700789685,0.6418,2003.8,2003.7,2.30833]
[1742700789888,1.64008,2003.8,2003.7,2.30833]
[1742700790088,1.64008,2003.8,2003.7,1.31]
[1742700792785,1.64008,2003.8,2003.7,2.5747]
[1742700794876,1.64008,2003.8,2003.7,1.2647]
[1742700795489,2.99198,2003.8,2003.7,1.2647]
[1742700795982,6.19978,2003.8,2003.7,1.2647]
[1742700797089,0.99838,2003.6,2003.5,1.2743]
[1742700797290,0.99843,2003.5,2003.4,1.00594738]
[1742700797988,0.99843,2003.5,2003.4,0.00749738]
[1742700798192,0.99843,2003.5,2003.4,1.00597738]
[1742700798489,0.99843,2003.5,2003.4,1.38289738]
[1742700798991,4.84103,2003.5,2003.4,0.00749738]
[1742700799192,0.99868,2003.0,2002.9,2.7392]
[1742700799692,0.99868,2003.0,2002.9,1.3769]
[1742700800281,2.27408,2003.0,2002.9,1.3769]
[1742700812903,2.27408,2003.0,2002.9,2.0527]
[1742700816002,3.21529738,2003.2,2002.9,2.0527]
[1742700816207,3.21529738,2003.2,2003.1,0.99863]
[1742700816704,4.57699738,2003.2,2003.1,2.35993]
[1742700816903,1.36919738,2003.2,2003.1,2.35993]
[1742700817206,2.36777738,2003.2,2003.1,1.3613]
[1742700823803,2.36777738,2003.2,2003.1,2.35993]
[1742700824308,2.36777738,2003.2,2003.1,1.3613]
[1742700825012,5.57557738,2003.2,2003.1,1.3613]
[1742700825607,0.99868,2003.0,2002.9,0.6758]
[1742700826913,2.35828,2003.0,2002.9,2.0237]
[1742700828913,0.99878,2002.8,2002.7,3.21529738]
[1742700830017,0.99878,2002.8,2002.7,1.66532738]
[1742700831226,0.99878,2002.8,2002.7,0.66649738]
[1742700831621,0.99878,2002.8,2002.7,2.70459738]
[1742700833022,1.68518,2002.8,2002.7,2.70459738]
[1742700834109,1.68518,2002.8,2002.7,1.39239738]
[1742700834321,2.33118,2002.8,2002.7,1.39239738]
[1742700836328,2.33118,2002.8,2002.7,0.00749738]
[1742700838825,2.33118,2002.8,2002.7,1.29139738]
[1742700852931,3.62098,2002.8,2002.7,1.29139738]
[1742700859443,2.93458,2002.8,2002.7,1.29139738]
[1742700863243,3.2078,2002.9,2002.7,1.29139738]
[1742700863450,4.02740335,2003.2,2003.0,0.99866]
[1742700863751,4.21390738,2003.2,2003.1,2.7389]
[1742700864340,3.21529738,2003.2,2003.1,3.73753]
[1742700864547,0.00749738,2003.2,2003.1,3.73753]
[1742700865952,3.2078,2003.5,2003.4,0.99848]
[1742700866344,2.39369,2003.6,2003.4,0.99848]
[1742700866545,2.39369,2003.6,2003.5,1.3972]
[1742700866754,2.39369,2003.6,2003.5,2.0296]
[1742700867449,3.08869,2003.6,2003.5,1.3972]
[1742700869454,0.99853,2003.3,2003.2,0.6666]
[1742700869655,0.99853,2003.3,2003.2,1.937]
[1742700869858,0.99851,2003.4,2003.2,2.93558]
[1742700870048,2.37481,2003.4,2003.3,1.2704]
[1742700870351,0.99853,2003.3,2003.2,0.6666]
[1742700870553,0.99872,2003.0,2002.8,0.99876]
[1742700870857,0.99872,2003.0,2002.8,1.66346]
[1742700871053,0.99873,2002.9,2002.8,0.6647]
[1742700871947,0.99873,2002.9,2002.8,1.9351]
[1742700872355,2.28373,2002.9,2002.8,1.9351]
[1742700875850,0.99878,2002.8,2002.7,0.00749738]
[1742700876052,2.36308,2002.8,2002.7,0.00749738]
[1742700877255,4.20656,2002.9,2002.7,1.37439738]
[1742700877457,3.2078,2002.9,2002.7,2.04349738]
[1742700877655,4.20653,2002.9,2002.7,3.04227738]
[1742700877855,3.2078,2002.9,2002.8,2.36568]
[1742700882355,4.20653,2002.9,2002.8,1.3669]
[1742700882657,5.59443,2002.9,2002.8,1.3669]
[1742700882862,0.99878,2002.8,2002.7,0.67659738]
[1742700883056,2.38668,2002.8,2002.7,1.98359738]
[1742700885556,2.38668,2002.8,2002.7,2.98242738]
[1742700886465,3.2078,2002.9,2002.7,2.98242738]
[1742700886761,4.20654,2002.9,2002.8,1.3054]
[1742700887153,4.20654,2002.9,2002.8,2.30418]
[1742700888261,4.20654,2002.9,2002.8,1.3054]
[1742700888960,0.99874,2002.9,2002.8,1.3054]
[1742700891460,2.28001,2003.0,2002.8,2.30415]
[1742700891871,2.28001,2003.0,2002.9,2.0725]
[1742700897660,0.99878,2002.8,2002.7,3.88439738]
[1742700898766,0.99878,2002.8,2002.7,3.21529738]
[1742700898969,2.26268,2002.8,2002.7,3.21529738]
[1742700899367,2.26268,2002.8,2002.7,4.49159738]
[1742700899568,2.26268,2002.8,2002.7,5.13809738]
[1742700899768,2.26268,2002.8,2002.7,6.13692738]
[1742700899962,2.26268,2002.8,2002.7,5.13809738]
[1742700900459,0.6504,2003.0,2002.7,5.13809738]
[1742700900667,2.35066,2002.9,2002.8,1.2763]
[1742700902567,2.35066,2002.9,2002.8,2.27508]
[1742700902770,0.99872,2003.0,2002.8,2.27508]
[1742700902966,2.28292,2003.0,2002.9,2.045]
[1742700905069,1.2842,2003.0,2002.9,3.04373]
[1742700905261,2.28288,2003.0,2002.9,2.045]
[1742700906964,2.28288,2003.0,2002.9,3.04373]
[1742700907264,2.28288,2003.0,2002.9,2.045]
[1742700908376,2.28288,2003.0,2002.9,3.04373]
[1742700908672,2.28288,2003.0,2002.9,2.045]
[1742700908977,2.28288,2003.0,2002.9,3.04373]
[1742700911068,1.2842,2003.0,2002.9,3.04373]
[1742700912873,2.28288,2003.0,2002.9,2.045]
[1742700913266,2.28288,2003.0,2002.9,3.04373]
[1742700916988,0.6441,2003.2,2002.9,2.045]
[1742700917174,2.36511,2003.2,2003.1,0.99863]
[1742700917870,2.36511,2003.2,2003.1,2.37993]
[1742700918280,2.36508,2003.2,2003.1,2.37993]
[1742700920078,1.3665,2003.2,2003.1,2.37993]
[1742700920278,3.2078,2003.5,2003.1,1.3813]
[1742700920477,1.3293,2003.5,2003.3,0.9985]
[1742700920674,2.32773,2003.5,2003.4,1.3813]
[1742700920877,2.32773,2003.5,2003.4,2.0406]
[1742700922385,2.32773,2003.5,2003.2,0.6622]
[1742700922386,0.99853,2003.3,2003.2,0.6622]
[1742700923275,0.99853,2003.3,2003.2,2.33798]
[1742700923686,2.30353,2003.3,2003.2,3.65718]
[1742700924490,1.305,2003.3,2003.2,3.65718]
[1742700924680,2.30353,2003.3,2003.2,3.65718]
[1742700925178,1.305,2003.3,2003.2,3.65718]
[1742700925778,0.99852,2003.4,2003.3,0.99853]
[1742700925975,0.99852,2003.4,2003.3,2.36663]
[1742700930789,0.99852,2003.4,2003.3,1.3681]
[1742700934389,0.99852,2003.4,2003.3,2.36663]
[1742700934688,0.99852,2003.4,2003.3,1.3681]
[1742700937586,1.65692,2003.4,2003.3,1.3681]
[1742700950095,1.3014,2003.5,2003.3,1.3681]
[1742700950403,0.99836,2003.7,2003.5,0.9984]
[1742700950600,0.99836,2003.7,2003.6,2.6698]
[1742700950796,2.26676,2003.7,2003.6,2.6698]
[1742700951305,2.26676,2003.7,2003.6,1.3681]
[1742700972721,0.99843,2003.5,2003.4,1.3253]
[1742700972917,0.99843,2003.5,2003.3,3.2078]
[1742700972918,0.99848,2003.4,2003.3,3.2078]
[1742700973218,0.99865,2003.1,2002.9,2.36009]
[1742700973414,0.99868,2003.0,2002.9,1.3614]
[1742700974114,0.99867,2003.1,2002.9,3.63541]
[1742700974515,0.99867,2003.1,2003.0,1.2753]
[1742700975415,0.99867,2003.1,2003.0,2.27398]
[1742700975617,0.9986,2003.2,2003.0,1.2753]
[1742700975818,0.9986,2003.2,2003.1,0.99863]
[1742700976020,1.324,2003.3,2003.2,0.99858]
[1742700976215,4.2063,2003.4,2003.2,0.99853]
[1742700976420,0.81073283,2003.6,2003.3,1.9773]
[1742700976618,0.99838,2003.6,2003.4,2.30945]
[1742700976822,0.99838,2003.6,2003.5,1.311]
[1742700977122,0.99838,2003.6,2003.5,1.987]
[1742700977624,2.34298,2003.6,2003.5,1.987]
[1742700978920,2.34298,2003.6,2003.5,1.311]
[1742700979219,3.66428,2003.6,2003.5,1.311]
[1742700982325,3.01578,2003.6,2003.5,1.311]
[1742700983921,2.34298,2003.6,2003.5,1.311]
[1742700984316,2.34298,2003.6,2003.5,1.9726]
[1742700990135,2.99578,2003.6,2003.5,1.9726]
[1742700990335,3.67028,2003.6,2003.5,1.9726]
[1742700991227,3.67028,2003.6,2003.5,1.311]
[1742700994833,0.99848,2003.4,2003.3,0.6663]
[1742700996235,0.99848,2003.4,2003.3,1.9382]
[1742701000944,0.99848,2003.4,2003.3,1.2719]
[1742701001143,0.99848,2003.4,2003.1,3.2078]
[1742701001144,0.99858,2003.2,2003.1,3.2078]
[1742701001345,0.99868,2003.0,2002.9,0.6388]
[1742701001639,0.99868,2003.0,2002.9,1.9382]
[1742701001839,0.99868,2003.0,2002.9,1.2994]
[1742701002039,2.32538,2003.0,2002.9,1.2994]
[1742701002438,0.99873,2002.9,2002.8,3.872]
[1742701002634,2.27443,2002.9,2002.8,5.1714]
[1742701003232,2.27443,2002.9,2002.8,4.5072]
[1742701003847,2.27443,2002.9,2002.8,5.1983]
[1742701006042,2.27443,2002.9,2002.8,4.5072]
[1742701007650,2.27443,2002.9,2002.8,1.2994]
[1742701008451,1.2757,2002.9,2002.8,2.29818]
[1742701010160,2.27443,2002.9,2002.8,2.29818]
[1742701011160,2.27443,2002.9,2002.8,1.2994]
[1742701011855,2.27443,2002.9,2002.8,2.29818]
[1742701012455,2.27443,2002.9,2002.8,1.2994]
[1742701014859,1.2757,2002.9,2002.8,1.2994]
[1742701015160,2.27443,2002.9,2002.8,1.2994]
[1742701015658,2.27443,2002.9,2002.8,2.29818]
[1742701015849,0.99871,2003.0,2002.8,2.29818]
[1742701016050,2.33391,2003.0,2002.9,1.9891]
[1742701017162,2.33391,2003.0,2002.9,1.3213]
[1742701017357,0.99878,2002.8,2002.7,0.68539738]
[1742701018062,2.33398,2002.8,2002.7,2.00669738]
[1742701020863,2.96598,2002.8,2002.7,2.00669738]
[1742701033572,2.33398,2002.8,2002.7,2.00669738]
[1742701042473,2.33398,2002.8,2002.7,3.00552738]
[1742701045177,0.99875,2002.9,2002.7,3.00552738]
[1742701045369,2.26035,2002.9,2002.8,1.3618]
[1742701057092,2.26035,2002.9,2002.7,0.00749738]
[1742701057093,0.99878,2002.8,2002.7,0.00749738]
[1742701057391,6.18668,2002.8,2002.7,0.00749738]
[1742701057581,6.99909609,2002.8,2002.7,0.00749738]
[1742701058291,7.90028447,2002.8,2002.7,0.00749738]
[1742701061993,7.89975546,2002.8,2002.7,0.00749738]
[1742701062295,7.89966947,2002.8,2002.7,0.00749738]
[1742701063603,6.99848109,2002.8,2002.7,0.00749738]
[1742701063890,6.18668,2002.8,2002.7,0.00749738]
[1742701064286,6.99831304,2002.8,2002.7,0.00749738]
[1742701064488,6.18668,2002.8,2002.7,0.00749738]
[1742701068296,2.29588,2002.8,2002.7,0.00749738]
[1742701068500,2.29588,2002.8,2002.7,1.98419738]
[1742701069899,1.2971,2002.8,2002.7,1.98419738]
[1742701070203,2.29588,2002.8,2002.7,1.98419738]
[1742701072096,5.50368,2002.8,2002.7,1.98419738]
[1742701072296,5.50368,2002.8,2002.7,1.29739738]
[1742701076203,5.50368,2002.8,2002.7,0.00749738]
[1742701078213,6.31527473,2002.8,2002.7,0.00749738]
[1742701078410,5.50368,2002.8,2002.7,0.00749738]
[1742701078610,6.31528011,2002.8,2002.7,0.00749738]
[1742701078911,7.21537196,2002.8,2002.7,0.00749738]
[1742701083720,0.99888,2002.6,2002.5,1.3936]
[1742701084618,2.35448,2002.6,2002.5,1.3936]
[1742701088220,3.16677947,2002.6,2002.5,1.3936]
[1742701091624,0.99898,2002.4,2002.3,1.27159738]
[1742701092828,2.32768,2002.4,2002.3,1.27159738]
[1742701093422,0.99898,2002.4,2002.3,1.27159738]
[1742701093821,0.99898,2002.4,2002.3,2.53539738]
[1742701094723,2.33348,2002.4,2002.3,2.53539738]
[1742701095630,0.99898,2002.4,2002.3,2.53539738]
[1742701096829,2.33348,2002.4,2002.3,2.53539738]
[1742701099727,3.2078,2002.5,2002.3,2.53539738]
[1742701099925,3.2078,2002.5,2002.4,2.31268]
[1742701100929,5.58160738,2002.8,2002.6,0.99887]
[1742701101125,5.58160738,2002.8,2002.7,1.9476]
[1742701101430,5.58160738,2002.8,2002.7,2.6202]
[1742701112036,4.58279738,2002.8,2002.7,2.6202]
[1742701112237,5.58157738,2002.8,2002.7,2.6202]
[1742701122541,2.37377738,2002.8,2002.7,2.6202]
[1742701126745,2.37377738,2002.8,2002.7,1.2603]
[1742701129447,3.18568158,2002.8,2002.7,1.2603]
[1742701129950,4.08623488,2002.8,2002.7,1.2603]
[1742701136756,0.99893,2002.5,2002.4,1.3504]
[1742701137551,0.99898,2002.4,2002.3,0.00749738]
[1742701138358,3.66778,2002.4,2002.3,0.00749738]
[1742701139656,3.66778,2002.4,2002.3,1.35289738]
[1742701140053,2.97808,2002.4,2002.3,1.35289738]
[1742701140456,2.30138,2002.4,2002.3,1.35289738]
[1742701149766,2.30138,2002.4,2002.3,0.00749738]
[1742701157274,0.99896,2002.5,2002.3,0.00749738]
[1742701157576,0.99895,2002.5,2002.4,0.99898]
[1742701157777,4.20671,2002.6,2002.4,2.35998]
[1742701157962,0.99893,2002.5,2002.4,2.35998]
[1742701158973,3.2078,2002.6,2002.4,2.35998]
[1742701159179,0.9989,2002.6,2002.5,0.99893]
[1742701159678,0.9989,2002.6,2002.4,2.35994]
[1742701159865,0.99893,2002.5,2002.4,2.35994]
[1742701162478,0.99893,2002.5,2002.4,1.361]
[1742701162681,0.99893,2002.5,2002.4,2.35998]
[1742701165682,0.99891,2002.6,2002.4,2.35998]
[1742701165975,0.99891,2002.6,2002.5,0.99893]
[1742701168485,1.2912,2002.7,2002.4,2.35994]
[1742701169282,0.99891,2002.6,2002.4,2.35994]
[1742701169787,1.3884,2002.5,2002.4,2.35994]
[1742701170488,2.38733,2002.5,2002.4,2.35994]
[1742701170990,0.9989,2002.6,2002.5,0.99893]
[1742701171191,3.21529738,2002.8,2002.3,3.21529738]
[1742701171192,3.7931,2002.7,2002.3,3.21529738]
[1742701171381,0.99898,2002.4,2002.3,0.00749738]
[1742701171790,2.29498,2002.4,2002.3,0.00749738]
[1742701172787,2.29498,2002.4,2002.3,1.37019738]
[1742701173289,2.29498,2002.4,2002.3,2.03159738]
[1742701178195,0.99898,2002.4,2002.3,3.03062738]
[1742701179592,1.3197,2002.5,2002.4,0.99898]
[1742701179897,0.99893,2002.5,2002.4,2.35758]
[1742701180098,2.33501,2002.6,2002.4,2.35758]
[1742701180298,2.33498,2002.6,2002.5,1.3586]
[1742701180603,0.99885,2002.7,2002.5,3.03199]
[1742701180801,2.33495,2002.7,2002.6,0.6793]
[1742701180996,2.33495,2002.7,2002.6,2.0379]
[1742701181797,5.55020738,2002.8,2002.6,3.03678]
[1742701181994,5.55020738,2002.8,2002.7,1.3586]
[1742701184500,5.55017738,2002.8,2002.7,1.3586]
[1742701188306,5.55017738,2002.8,2002.7,2.35743]
[1742701188807,5.55017738,2002.8,2002.7,1.3586]
[1742701190506,2.34237738,2002.8,2002.7,1.3586]
[1742701192604,1.34359738,2002.8,2002.7,2.35743]
[1742701192903,9.60984961,2003.4,2002.7,1.3586]
[1742701193102,1.3609,2003.2,2003.1,0.99863]
[1742701194702,2.35948,2003.2,2003.1,0.99863]
[1742701194917,2.3595,2003.2,2003.0,1.67034]
[1742701195108,1.2946,2003.1,2003.0,1.67034]
[1742701199408,1.2946,2003.1,2003.0,0.6717]
[1742701199409,2.29323,2003.1,2003.0,0.6717]
[1742701199615,0.99868,2003.0,2002.8,0.99875]
[1742701199810,2.34278,2003.0,2002.8,0.99875]
[1742701200205,1.3441,2002.9,2002.8,0.99875]
[1742701200511,1.3441,2002.9,2002.6,4.85335]
[1742701200719,2.33979,2002.8,2002.7,0.99883]
[1742701201719,1.341,2002.8,2002.7,0.99883]
[1742701202217,1.342,2002.8,2002.7,0.99883]
[1742701209016,1.341,2003.2,2002.8,0.99874]
[1742701209210,0.99868,2003.0,2002.8,0.99874]
[1742701209416,1.3471,2002.9,2002.8,0.99874]
[1742701209616,2.34583,2002.9,2002.8,0.99874]
[1742701210017,2.34586,2002.9,2002.7,0.99879]
[1742701210321,1.3471,2002.8,2002.7,0.99879]
[1742701212927,1.3471,2002.8,2002.7,2.34729]
[1742701216119,2.34588,2002.8,2002.7,2.34729]
[1742701216428,3.04398,2002.8,2002.7,2.34729]
[1742701216621,2.0452,2002.8,2002.7,2.34729]
[1742701217727,1.3471,2002.8,2002.7,2.34729]
[1742701218322,0.99869,2003.0,2002.7,1.3485]
[1742701218622,0.99869,2003.0,2002.9,0.99873]
[1742701219126,0.99873,2002.9,2002.8,2.27105]
[1742701220627,1.3626,2003.0,2002.8,2.27105]
[1742701220628,2.36132,2003.0,2002.8,2.27105]
[1742701220829,0.99864,2003.1,2002.9,1.3776]
[1742701221020,1.3626,2003.2,2003.1,0.99863]
[1742701221217,1.3626,2003.2,2003.0,0.6429]
[1742701221218,3.2078,2003.3,2003.2,0.99858]
[1742701221420,4.5704,2003.3,2003.2,0.99858]
[1742701223234,1.3626,2003.3,2003.2,0.99858]
[1742701224834,0.99851,2003.4,2003.3,0.99853]
[1742701225033,2.27041,2003.4,2003.3,0.99853]
[1742701225437,1.63728,2003.6,2003.5,0.99843]
[1742701226135,1.63728,2003.6,2003.4,0.99844]
[1742701226736,2.34703,2003.5,2003.4,0.99844]
[1742701226931,2.34703,2003.5,2003.4,0.99848]
[1742701231742,1.3486,2003.5,2003.4,0.99848]
[1742701233234,1.3486,2003.5,2003.4,2.28388]
[1742701235642,2.34703,2003.5,2003.4,2.28388]
[1742701235844,1.3486,2003.5,2003.4,2.28388]
[1742701239449,2.34703,2003.5,2003.4,2.28388]
[1742701239850,2.34703,2003.5,2003.4,1.2854]
[1742701240642,2.34703,2003.5,2003.4,2.28388]
[1742701241038,2.34703,2003.5,2003.4,1.2854]
[1742701243351,2.34703,2003.5,2003.4,2.28388]
[1742701243550,2.34703,2003.5,2003.4,1.2854]
[1742701250153,2.34703,2003.5,2003.4,2.28388]
[1742701251855,2.34703,2003.5,2003.4,1.2854]
[1742701264170,0.99841,2003.6,2003.4,2.28388]
[1742701264366,1.2898,2003.6,2003.5,5.53213]
[1742701264864,1.6629,2003.8,2003.6,0.99834]
[1742701265058,1.2898,2003.7,2003.6,1.65364]
[1742701265259,2.28813,2003.7,2003.6,1.65364]
[1742701268063,52.89961558,2004.3,2003.6,1.65364]
[1742701268064,3.2078,2004.8,2003.8,2.49561]
[1742701268363,0.99785,2004.7,2004.2,5.70295]
[1742701268554,0.99785,2004.7,2004.5,0.99788]
[1742701269062,0.99785,2004.7,2004.4,0.00749738]
[1742701269363,5.2258,2004.8,2004.6,0.99786]
[1742701269563,0.99783,2004.7,2004.6,0.99786]
[1742701269864,2.018,2004.8,2004.5,0.9979]
[1742701269865,0.99788,2004.6,2004.5,0.9979]
[1742701270066,1.3398,2004.7,2004.5,0.9979]
[1742701270270,2.33766,2004.7,2004.5,0.9979]
[1742701270561,1.3398,2004.7,2004.5,0.99793]
[1742701270865,2.33767,2004.7,2004.5,0.99793]
[1742701271565,0.99788,2004.6,2004.5,0.99793]
[1742701272164,0.99792,2004.6,2004.4,1.00544738]
[1742701273065,0.99792,2004.6,2004.5,4.20573]
[1742701273259,1.3398,2004.7,2004.6,0.99788]
[1742701273567,1.3398,2004.7,2004.5,4.20569]
[1742701273954,2.33766,2004.7,2004.5,4.20569]
[1742701274160,2.33766,2004.7,2004.5,3.2078]
[1742701274161,0.99788,2004.6,2004.5,3.2078]
[1742701274360,1.296,2004.6,2004.5,3.2078]
[1742701274665,2.29388,2004.6,2004.5,3.2078]
[1742701275854,0.99788,2004.6,2004.5,3.2078]
[1742701277178,0.99788,2004.6,2004.5,3.8777]
[1742701281173,0.99788,2004.6,2004.5,0.6699]
[1742701283069,0.99788,2004.6,2004.5,1.9445]
[1742701289070,1.64278,2004.6,2004.5,1.9445]
[1742701289466,1.64278,2004.6,2004.5,1.2746]
[1742701291982,1.64278,2004.6,2004.5,2.27253]
[1742701292377,1.64278,2004.6,2004.5,1.2746]
[1742701292682,2.31556,2004.7,2004.5,2.27253]
[1742701293076,2.31556,2004.7,2004.6,1.2611]
[1742701293077,0.99786,2004.7,2004.6,1.2611]
[1742701298381,0.99783,2004.7,2004.6,2.25898]
[1742701298781,0.99783,2004.7,2004.6,1.2611]
[1742701306685,0.99783,2004.7,2004.6,2.92608]
[1742701307089,0.99783,2004.7,2004.6,1.9282]
[1742701307691,0.99779,2004.8,2004.7,0.99781]
[1742701307891,1.67569,2004.8,2004.7,1.3735]
[1742701310691,1.67569,2004.8,2004.7,2.0301]
[1742701311393,1.67569,2004.8,2004.7,3.02793]
[1742701311597,1.67569,2004.8,2004.7,2.0301]
[1742701311795,0.99779,2004.8,2004.7,2.0301]
[1742701312900,2.25779,2004.8,2004.7,3.02793]
[1742701313393,1.26,2004.8,2004.7,6.23573]
[1742701313991,2.25778,2004.8,2004.7,6.23573]
[1742701314196,1.26,2004.8,2004.7,6.23573]
[1742701315295,2.25778,2004.8,2004.7,6.23573]
[1742701316591,2.25778,2004.8,2004.7,2.0301]
[1742701317596,2.25778,2004.8,2004.7,3.02793]
[1742701318100,1.26,2004.8,2004.7,3.02793]
[1742701318300,0.99775,2004.9,2004.8,0.99778]
[1742701318598,2.38245,2004.9,2004.8,2.39058]
[1742701319691,2.38245,2004.9,2004.8,1.3928]
[1742701320597,3.2078,2005.8,2005.0,2.49421]
[1742701320799,0.9974,2005.6,2005.4,0.99745]
[1742701320995,4.5148,2005.8,2005.1,7.77506]
[1742701320996,1.307,2005.7,2005.6,0.99738]